bitfinex/quotes_ETHUSD_20241212
["timestamp","ask_amount","ask_price","bid_price","bid_amount"]
[1734034670992,2.90574742,3871.1,3870.3,0.1607916]
[1734034671116,0.32247742,3871.1,3870.3,0.1607916]
[1734034671300,0.6093,3870.8,3870.3,0.1607916]
[1734034671499,0.76070717,3870.8,3870.3,0.1607916]
[1734034671700,0.6093,3870.8,3870.3,0.1607916]
[1734034672217,0.03229469,3871.6,3870.3,0.1607916]
[1734034672218,2.58297,3871.6,3870.3,0.1607916]
[1734034672541,2.58298,3871.5,3870.3,0.1607916]
[1734034673010,2.58298,3871.5,3870.3,2.2278016]
[1734034673217,2.58298,3871.5,3870.3,0.1607916]
[1734034673414,2.58318,3871.2,3870.3,0.1607916]
[1734034673616,0.6093,3871.4,3870.3,0.1607916]
[1734034674518,0.6093,3871.4,3870.5,2.06687]
[1734034675432,0.6093,3871.8,3870.5,2.94232826]
[1734034675634,7.59959282,3873.1,3871.1,2.06659]
[1734034675832,2.58233,3872.5,3871.2,0.206659]
[1734034676641,2.58241,3872.4,3871.2,0.206659]
[1734034677142,2.58224,3872.6,3871.2,0.206659]
[1734034677341,0.03228384,3872.6,3871.2,3.206659]
[1734034677510,2.58238,3872.4,3871.2,0.206659]
[1734034677707,0.6093,3872.2,3870.7,0.8131]
[1734034677906,2.58269,3872.0,3870.7,3.8131]
[1734034678240,0.03228608,3872.1,3870.7,3.8131]
[1734034678241,2.5826,3872.1,3870.7,0.8131]
[1734034678440,0.6093,3872.2,3870.7,0.8131]
[1734034678653,0.6093,3872.2,3870.7,0.02583074]
[1734034678962,0.6093,3872.2,3870.8,0.64634905]
[1734034679147,0.6093,3872.2,3871.0,5.06662]
[1734034679351,0.6093,3872.2,3871.0,2.06662]
[1734034679964,0.6093,3872.2,3870.9,3.0]
[1734034680138,2.58258,3872.1,3870.9,3.0]
[1734034680456,0.6093,3872.2,3871.0,2.7155099]
[1734034680664,2.58263,3872.1,3871.0,3.6488699]
[1734034681023,2.58271,3871.9,3870.8,3.64634905]
[1734034682084,2.58258,3872.1,3870.8,3.64634905]
[1734034682331,0.641587,3872.2,3870.8,3.64634905]
[1734034682332,2.58265,3872.0,3870.9,3.0]
[1734034682464,0.6093,3872.5,3870.8,0.64634905]
[1734034682773,1.06854029,3872.7,3870.8,2.71309905]
[1734034682774,2.58267,3872.0,3870.8,2.71309905]
[1734034682979,0.6093,3872.1,3870.9,3.75632953]
[1734034682980,2.58272,3871.9,3870.9,3.75632953]
[1734034683174,2.58272,3871.9,3870.9,0.75632953]
[1734034683339,2.58284,3871.8,3870.8,0.64634905]
[1734034683549,2.58284,3871.8,3870.7,0.7756]
[1734034683742,3.1924,3871.4,3870.5,4.07459622]
[1734034683946,0.6093,3871.4,3870.6,1.26710915]
[1734034684242,0.6093,3871.4,3870.3,0.9316916]
[1734034684243,0.6093,3871.4,3870.3,3.9316916]
[1734034684444,0.6093,3871.4,3870.4,1.2674047]
[1734034684672,0.6093,3871.4,3870.5,1.26738225]
[1734034684854,0.6093,3872.1,3870.6,1.26736367]
[1734034685082,2.58264,3872.0,3870.8,2.06673]
[1734034685382,2.58264,3872.0,3870.6,4.07459622]
[1734034685383,0.6093,3871.3,3870.3,4.23538782]
[1734034685607,0.6093,3871.3,3870.3,0.1607916]
[1734034685894,0.6093,3871.3,3870.3,1.00223373]
[1734034686151,0.6093,3871.3,3870.4,3.0]
[1734034686591,0.6093,3871.3,3870.6,2.06684]
[1734034686799,2.58276,3871.9,3870.6,5.06684]
[1734034686993,2.58276,3871.9,3870.7,1.26735254]
[1734034687209,2.956966,3871.9,3870.6,1.07459622]
[1734034687515,2.956966,3871.9,3870.7,2.0668]
[1734034688025,2.58279,3871.8,3870.7,2.0668]
[1734034688316,0.6093,3871.7,3870.7,2.0668]
[1734034689009,0.6093,3871.7,3870.5,2.0669]
[1734034689182,0.6093,3871.7,3870.6,4.26741131]
[1734034689373,0.6093,3871.7,3870.6,3.0]
[1734034689904,0.6093,3871.7,3870.3,3.9727916]
[1734034690093,0.03228991,3871.9,3870.3,3.9727916]
[1734034690094,0.6093,3871.5,3870.3,0.1607916]
[1734034690260,0.6093,3870.8,3870.3,0.1607916]
[1734034690460,3.19276,3870.8,3870.3,0.1607916]
[1734034690700,2.58358,3870.6,3870.3,0.1607916]
[1734034690972,0.928576,3870.8,3870.3,0.1607916]
[1734034690973,2.58351,3870.7,3870.3,0.1607916]
[1734034691768,0.928576,3870.8,3870.3,0.1607916]
[1734034691969,0.6093,3870.8,3870.3,0.1607916]
[1734034692569,0.6093,3871.2,3870.3,0.1607916]
[1734034692766,0.6093,3871.2,3870.4,0.7878]
[1734034693799,2.58324,3871.1,3870.3,0.1607916]
[1734034694014,0.6093,3871.2,3870.3,0.1607916]
[1734034694427,3.19249,3871.2,3870.3,0.1607916]
[1734034695124,0.928549,3871.2,3870.3,0.1607916]
[1734034695269,0.03229239,3871.1,3870.3,0.1607916]
[1734034695467,0.6093,3871.0,3870.3,0.1607916]
[1734034695664,0.0322976,3870.9,3870.3,0.1607916]
[1734034696106,2.58356,3870.7,3870.3,0.1607916]
[1734034696268,2.58339,3870.9,3870.3,0.1607916]
[1734034696576,0.319269,3870.8,3870.3,0.1607916]
[1734034696780,2.902739,3870.8,3870.3,0.1607916]
[1734034696982,0.6093,3871.0,3870.3,0.1607916]
[1734034697303,3.19267,3871.0,3870.3,0.1607916]
[1734034697605,3.19264,3871.0,3870.3,0.1607916]
[1734034698473,2.58371,3870.4,3870.3,0.1607916]
[1734034698734,3.19301,3870.4,3870.3,0.1607916]
[1734034698918,3.51554079,3870.4,3870.3,0.1607916]
[1734034699686,0.93183079,3870.4,3870.3,0.1607916]
[1734034700229,1.06854029,3871.3,3870.3,0.1607916]
[1734034700230,2.58338,3870.9,3870.3,0.1607916]
[1734034700368,2.58345,3870.8,3870.3,0.1607916]
[1734034700569,0.6093,3871.0,3870.3,0.1607916]
[1734034701615,0.6093,3871.4,3870.3,0.1607916]
[1734034701815,0.6093,3871.4,3870.3,2.2277916]
[1734034702425,0.6093,3871.4,3870.4,2.06695]
[1734034702623,3.511587,3871.4,3870.4,2.06695]
[1734034702802,3.511587,3871.4,3870.5,2.06691]
[1734034702803,0.6093,3871.4,3870.5,2.06691]
[1734034703139,3.19235,3871.4,3870.3,2.2278016]
[1734034703274,3.1892433,3871.4,3870.3,2.2278016]
[1734034704118,1.06854029,3872.1,3870.3,0.1607916]
[1734034704330,2.58277,3871.9,3870.9,2.06666]
[1734034704476,2.58277,3871.9,3870.9,2.273326]
[1734034705407,3.65083029,3872.6,3871.0,2.8197]
[1734034705725,3.65071029,3872.8,3871.1,0.02583076]
[1734034705936,0.88594953,3872.7,3871.2,2.91649753]
[1734034706081,0.92024033,3873.0,3871.3,0.8109]
[1734034706279,0.6062,3872.8,3871.5,2.06636]
[1734034707680,3.18831,3872.8,3871.6,2.06631]
[1734034707879,0.6062,3872.8,3871.4,0.37273975]
[1734034708176,1.032595,3873.1,3871.7,0.7633]
[1734034708377,1.032595,3873.1,3872.2,2.06596]
[1734034708618,0.6062,3873.2,3872.3,0.206596]
[1734034708922,0.6062,3873.2,3872.4,0.7829]
[1734034709226,2.58192,3873.1,3871.9,2.84906]
[1734034709523,2.58192,3873.1,3872.0,3.0]
[1734034709681,3.18804,3873.2,3872.1,2.06606]
[1734034710012,3.18804,3873.2,3872.2,0.584896]
[1734034710176,0.6062,3873.2,3872.2,2.650896]
[1734034710381,0.6062,3873.2,3872.2,2.066]
[1734034710714,0.6062,3873.2,3872.3,2.0659]
[1734034710915,2.58192,3873.1,3871.9,0.7829]
[1734034711118,2.58215,3872.8,3871.9,0.7829]
[1734034711303,2.58196,3873.1,3871.9,0.7829]
[1734034711479,2.58196,3873.1,3872.0,2.35102]
[1734034711922,0.6062,3873.2,3872.0,0.28491]
[1734034712321,0.6062,3873.2,3872.1,2.06601]
[1734034712491,0.03227504,3873.1,3872.0,0.28491]
[1734034712697,0.6062,3873.2,3872.0,0.28491]
[1734034712900,0.6062,3873.2,3872.1,0.313402]
[1734034713099,0.6062,3873.2,3871.9,0.7829]
[1734034713618,0.6062,3873.2,3872.3,2.06594]
[1734034713920,2.58172,3873.4,3872.4,0.7829]
[1734034714609,1.032435,3873.6,3872.5,2.339378]
[1734034714793,0.6062,3873.9,3873.0,2.06555]
[1734034714995,0.6062,3873.9,3873.0,2.84845]
[1734034715786,0.6062,3873.9,3873.0,0.7829]
[1734034716381,2.58153,3873.7,3873.0,0.7829]
[1734034716635,3.18759,3873.9,3873.0,0.7829]
[1734034716936,3.76769394,3873.9,3873.0,0.7829]
[1734034717151,1.18630394,3873.9,3873.0,0.7829]
[1734034717452,0.6062,3874.2,3873.0,0.7829]
[1734034717987,0.6062,3874.2,3873.0,2.84843]
[1734034718259,0.6062,3874.2,3873.2,2.06546]
[1734034718530,0.6062,3874.2,3873.0,0.7829]
[1734034718531,3.18738,3874.2,3873.0,0.7829]
[1734034718788,0.6062,3874.2,3873.1,5.0655]
[1734034719000,3.18738,3874.2,3873.1,5.0655]
[1734034719654,0.6062,3874.2,3873.2,2.06544]
[1734034720376,0.6062,3874.2,3873.0,0.7829]
[1734034720523,0.6062,3874.2,3873.3,2.0654]
[1734034720988,0.6062,3874.2,3873.1,0.37829]
[1734034721126,2.58127,3874.1,3873.1,3.0]
[1734034721521,0.6062,3874.2,3873.0,0.7829]
[1734034722059,3.18739,3874.2,3873.1,2.06551]
[1734034722262,0.6062,3874.2,3873.0,0.7829]
[1734034722592,0.6062,3874.2,3873.1,5.06551]
[1734034722593,3.1874,3874.2,3873.1,5.06551]
[1734034722868,3.1874,3874.2,3873.2,0.8187788]
[1734034723835,3.1874,3874.2,3873.2,2.8842388]
[1734034724373,0.6062,3874.5,3873.3,5.339378]
[1734034724584,0.6062,3874.5,3873.4,3.7638]
[1734034724726,0.6062,3874.5,3873.5,1.19873968]
[1734034724932,3.0,3875.5,3874.1,2.06497]
[1734034724933,3.18674,3875.2,3874.1,2.06497]
[1734034725162,0.6062,3875.2,3873.8,0.7638]
[1734034725468,2.58071,3875.0,3873.9,2.0651]
[1734034726167,0.6062,3874.8,3873.8,0.7638]
[1734034726370,1.031955,3875.3,3873.0,3.36259553]
[1734034726371,0.6062,3874.6,3873.0,3.36259553]
[1734034726536,2.58116,3874.3,3873.1,5.06551]
[1734034727466,2.58099,3874.5,3873.2,3.0]
[1734034727665,2.58099,3874.5,3873.5,0.7825]
[1734034727970,2.58099,3874.5,3873.5,1.067286]
[1734034728451,2.58125,3874.1,3873.5,0.7825]
[1734034729166,0.0322652,3874.4,3873.5,0.7825]
[1734034729530,2.58136,3874.0,3873.1,0.7523]
[1734034729851,2.5814,3873.9,3873.1,0.7523]
[1734034730251,2.58145,3873.8,3873.1,0.7523]
[1734034730473,2.58131,3874.1,3873.1,0.7523]
[1734034730655,2.339378,3874.8,3873.1,0.7523]
[1734034730656,3.18757,3873.9,3873.1,0.7523]
[1734034730976,2.58154,3873.7,3872.8,0.8157]
[1734034731327,2.58179,3873.3,3872.8,0.8157]
[1734034731547,0.03227174,3873.8,3872.0,0.8157]
[1734034731745,0.6062,3873.7,3872.0,0.8157]
[1734034731947,0.6062,3873.5,3872.0,0.8157]
[1734034732150,2.58177,3873.3,3872.0,0.8157]
[1734034732339,2.58236,3872.5,3872.0,0.8157]
[1734034732777,0.6062,3872.8,3872.0,0.8157]
[1734034732950,2.58188,3873.2,3872.0,2.8818]
[1734034733149,2.58188,3873.2,3872.1,0.28818]
[1734034733365,2.58198,3873.0,3872.1,0.28818]
[1734034734281,2.58227,3872.6,3872.0,0.8157]
[1734034735084,0.6062,3872.8,3871.5,1.3221617]
[1734034735382,2.58249,3872.3,3871.5,0.8157]
[1734034735595,2.61462298,3872.5,3871.5,0.8157]
[1734034735915,0.2614623,3872.4,3871.5,0.8157]
[1734034736049,2.58254,3872.2,3871.5,0.8157]
[1734034736244,2.61464298,3872.5,3871.5,0.8157]
[1734034736448,2.58251,3872.2,3871.5,0.8157]
[1734034736673,2.5826,3872.1,3871.5,0.8157]
[1734034737063,0.03228298,3872.5,3871.5,0.8157]
[1734034737258,2.58245,3872.3,3871.5,0.8157]
[1734034737471,2.58245,3872.3,3869.4,3.80457725]
[1734034737472,0.6062,3872.3,3870.7,0.7799]
[1734034737676,2.58299,3871.5,3870.7,0.7799]
[1734034737877,0.6062,3871.5,3870.7,0.7799]
[1734034738984,2.58269,3872.0,3870.7,0.7799]
[1734034738985,2.58295,3871.6,3870.7,0.7799]
[1734034739212,2.58295,3871.6,3870.7,1.15789]
[1734034739414,3.18898,3871.8,3870.7,1.15789]
[1734034739820,0.6062,3871.8,3870.7,1.15789]
[1734034740024,2.58279,3871.8,3870.7,1.15789]
[1734034740875,0.6062,3872.2,3870.7,1.15789]
[1734034740876,0.03228691,3871.7,3870.7,1.15789]
[1734034741072,2.58257,3872.1,3870.4,0.7917]
[1734034741073,2.339378,3871.8,3870.4,0.7917]
[1734034741311,2.61513185,3871.7,3870.4,0.7917]
[1734034741516,2.58325,3871.1,3870.4,0.7917]
[1734034742014,0.03229224,3871.5,3870.4,0.7917]
[1734034742318,2.58229,3872.6,3870.4,0.7917]
[1734034742319,2.58244,3872.3,3871.0,2.06663]
[1734034742827,0.6062,3872.4,3870.9,0.7917]
[1734034742828,2.58264,3872.0,3870.9,0.7917]
[1734034743191,0.6062,3872.4,3870.9,0.7917]
[1734034743538,3.18834,3872.8,3871.2,3.0]
[1734034743742,0.6062,3873.2,3871.5,0.7917]
[1734034743944,0.6062,3873.2,3871.4,3.0]
[1734034743945,1.1589398,3873.2,3871.8,0.7917]
[1734034744231,2.58215,3872.8,3871.8,0.7917]
[1734034744735,2.58199,3873.0,3871.8,2.85791]
[1734034745532,1.1589398,3873.2,3872.0,2.0661]
[1734034745763,1.1589398,3873.2,3872.1,0.7917]
[1734034745764,0.5527398,3873.2,3872.1,0.7917]
[1734034745896,0.03227733,3873.1,3872.1,0.7917]
[1734034746102,2.94042171,3873.1,3872.1,0.7917]
[1734034746336,0.03227733,3873.0,3872.1,0.7917]
[1734034746497,2.58217,3872.7,3872.1,0.7917]
[1734034746693,2.58204,3873.0,3872.1,0.7917]
[1734034746913,0.03227734,3873.1,3872.1,0.7917]
[1734034747396,2.5821,3872.9,3872.1,0.7917]
[1734034747637,0.34895405,3873.1,3872.1,0.7917]
[1734034747638,0.31667671,3873.1,3872.1,0.7917]
[1734034747949,0.6062,3873.5,3872.1,0.7917]
[1734034748108,2.5819,3873.2,3872.1,0.7917]
[1734034748311,2.58199,3873.0,3872.1,0.7917]
[1734034748511,2.58182,3873.3,3872.1,0.7917]
[1734034748710,0.6062,3873.5,3872.1,0.7917]
[1734034748711,0.03227689,3873.2,3872.1,0.7917]
[1734034749143,2.582,3873.0,3872.1,0.7917]
[1734034749453,2.5817,3873.5,3872.4,0.7917]
[1734034749654,2.5817,3873.5,3872.5,0.28576]
[1734034749799,0.6062,3873.8,3872.5,0.28576]
[1734034749800,2.58172,3873.4,3872.5,0.28576]
[1734034750251,0.03227368,3873.7,3872.5,0.28576]
[1734034750453,0.03227368,3873.7,3872.4,0.7917]
[1734034750667,0.6062,3873.3,3872.1,0.7543]
[1734034750957,2.58218,3872.7,3872.1,0.7543]
[1734034751710,0.6062,3873.3,3872.1,0.7543]
[1734034751711,2.5823,3872.6,3872.1,0.7543]
[1734034752059,2.58191,3873.1,3872.1,0.7543]
[1734034752199,2.58198,3873.0,3872.1,0.7543]
[1734034752404,2.58198,3873.0,3872.1,1.036342]
[1734034753039,0.6062,3873.3,3872.1,1.036342]
[1734034753222,0.6062,3873.7,3872.1,0.7543]
[1734034753399,0.03227568,3873.6,3872.1,0.7543]
[1734034753599,3.22002645,3873.7,3872.1,0.7543]
[1734034754116,0.63847645,3873.7,3872.1,0.7543]
[1734034754275,2.58166,3873.5,3872.4,0.7619]
[1734034754427,2.58166,3873.5,3872.5,0.282784]
[1734034754623,2.339378,3873.9,3872.5,0.282784]
[1734034754874,2.339378,3873.9,3872.4,0.7619]
[1734034754875,2.58164,3873.5,3872.4,2.8278]
[1734034755373,2.58172,3873.4,3872.4,0.7619]
[1734034755575,2.58197,3873.1,3872.4,0.7619]
[1734034755742,0.03227662,3873.0,3872.0,0.7619]
[1734034756073,2.58204,3872.9,3872.0,0.7619]
[1734034756287,0.03228062,3872.8,3872.0,0.7619]
[1734034756774,2.58211,3872.8,3872.0,0.7619]
[1734034756941,2.58206,3872.9,3872.0,0.7619]
[1734034757147,2.58211,3872.8,3872.0,0.7619]
[1734034757682,2.58204,3872.9,3872.0,0.7619]
[1734034757912,0.6062,3873.3,3872.1,0.282809]
[1734034758481,2.58199,3873.0,3872.0,0.7619]
[1734034759367,2.58199,3873.0,3872.1,0.8306]
[1734034759803,2.58206,3872.9,3872.1,0.8306]
[1734034760012,0.03227738,3872.8,3872.1,0.8306]
[1734034760219,2.58231,3872.6,3872.1,0.8306]
[1734034760513,0.03227738,3872.8,3872.1,0.8306]
[1734034760514,2.58213,3872.8,3872.1,0.8306]
[1734034760694,2.58218,3872.7,3872.1,0.8306]
[1734034761490,0.63848063,3872.6,3871.1,0.8032]
[1734034761687,3.22077063,3872.6,3871.1,0.8032]
[1734034762022,2.58274,3871.9,3871.1,0.8032]
[1734034762520,0.03228713,3872.5,3871.1,0.8032]
[1734034762521,0.55,3872.4,3871.1,0.8032]
[1734034762666,2.58266,3872.0,3871.1,0.8032]
[1734034763163,0.373855,3872.3,3871.1,0.8032]
[1734034763164,2.58251,3872.2,3871.1,0.8032]
[1734034763385,2.58279,3871.8,3871.1,0.8032]
[1734034763611,0.63848713,3872.1,3871.1,0.8032]
[1734034763612,2.5829,3871.7,3871.1,0.8032]
[1734034764316,2.5829,3871.7,3870.3,0.1607916]
[1734034764317,5.58371,3870.4,3870.3,0.1607916]
[1734034764486,7.923088,3870.4,3870.3,0.1607916]
[1734034764692,2.58371,3870.4,3870.3,0.1607916]
[1734034766076,3.0,3870.6,3870.3,0.1607916]
[1734034766282,3.0,3871.1,3870.3,0.1607916]
[1734034766521,2.58331,3871.0,3870.4,0.8032]
[1734034767101,3.6062,3871.5,3870.4,0.8032]
[1734034767394,5.58317,3871.3,3870.4,0.8032]
[1734034767733,0.6062,3871.5,3870.4,0.8032]
[1734034767734,2.58324,3871.1,3870.4,0.8032]
[1734034768918,2.58336,3871.0,3870.4,0.8032]
[1734034770454,0.63849332,3871.5,3870.4,0.8032]
[1734034770640,2.58364,3870.5,3870.3,0.1607916]
[1734034770802,2.58371,3870.4,3870.3,0.1607916]
[1734034771308,2.58327,3871.1,3870.3,0.1607916]
[1734034771539,2.58357,3870.6,3870.3,0.1607916]
[1734034771901,2.58331,3871.0,3870.3,0.1607916]
[1734034772246,2.58363,3870.6,3870.3,0.1607916]
[1734034772563,2.58359,3870.6,3870.3,0.1607916]
[1734034772697,2.58344,3870.8,3870.3,0.1607916]
[1734034772903,3.51846344,3871.6,3870.3,0.30628076]
[1734034773202,2.58337,3871.0,3870.3,0.30628076]
[1734034773404,2.6153345,3871.4,3870.3,0.30628076]
[1734034773405,2.58317,3871.2,3870.3,0.30628076]
[1734034773915,2.58325,3871.1,3870.3,0.30628076]
[1734034774119,2.58331,3871.0,3870.3,0.1607916]
[1734034774323,2.58358,3870.6,3870.3,0.1607916]
[1734034774521,2.58362,3870.6,3870.3,0.1607916]
[1734034774820,2.58365,3870.5,3870.3,0.1607916]
[1734034775021,2.58344,3870.8,3870.3,0.1607916]
[1734034775255,2.58371,3870.4,3870.3,0.1607916]
[1734034775852,2.58356,3870.7,3870.3,0.1607916]
[1734034776014,2.58318,3871.2,3870.4,0.7758]
[1734034776215,2.58324,3871.1,3870.4,0.7758]
[1734034776812,3.18915,3871.6,3870.4,0.80163474]
[1734034776813,2.58291,3871.6,3870.4,0.80163474]
[1734034777060,2.58297,3871.5,3870.4,0.80163474]
[1734034777205,2.58297,3871.5,3870.4,0.7758]
[1734034777401,2.58297,3871.5,3870.6,0.8125]
[1734034777654,2.58287,3871.7,3870.6,0.8125]
[1734034778006,0.03228871,3871.6,3870.6,0.8125]
[1734034778207,2.58304,3871.5,3870.6,0.8125]
[1734034778651,6.49999,3872.0,3870.7,0.8265]
[1734034778837,2.58279,3871.8,3870.8,1.115836]
[1734034779351,6.49999,3872.0,3870.9,0.8265]
[1734034780123,6.49999,3872.0,3870.9,2.06668]
[1734034780447,6.49999,3872.0,3871.0,2.06664]
[1734034780651,6.49999,3872.0,3870.9,0.7965]
[1734034780835,6.49999,3872.0,3871.0,3.43173148]
[1734034781037,6.49999,3872.0,3871.1,0.7965]
[1734034781235,9.08266,3872.0,3871.1,0.7965]
[1734034782049,6.49999,3872.0,3871.1,0.7965]
[1734034783850,9.08266,3872.0,3871.1,0.7965]
[1734034784568,6.49999,3872.0,3871.1,0.7965]
[1734034784768,2.58305,3871.4,3871.1,0.7965]
[1734034786373,0.03228415,3871.9,3871.1,0.7965]
[1734034786675,6.49999,3872.0,3871.1,0.7965]
[1734034786873,2.58292,3871.6,3871.1,0.7965]
[1734034787578,2.58284,3871.8,3871.1,0.7965]
[1734034787741,6.49999,3872.0,3871.1,0.7965]
[1734034787968,0.710619,3871.9,3871.1,0.7965]
[1734034788472,9.08268,3872.0,3871.1,0.7965]
[1734034788682,6.49999,3872.0,3871.1,0.7965]
[1734034788844,6.49999,3872.0,3871.5,0.8237]
[1734034789173,6.49999,3872.0,3871.4,2.92050488]
[1734034789174,6.49999,3872.0,3871.9,2.88986]
[1734034789579,5.66669,3872.0,3871.9,5.88986]
[1734034789741,5.66669,3872.0,3871.9,7.52752849]
[1734034789742,3.54207,3872.0,3871.9,7.52752849]
[1734034789935,3.54207,3872.0,3871.9,8.74374697]
[1734034790155,3.54207,3872.0,3871.9,7.52752849]
[1734034790553,3.54207,3872.0,3871.9,8.74350765]
[1734034791158,3.54207,3872.0,3871.9,7.52752849]
[1734034791373,3.54207,3872.0,3871.9,6.97752849]
[1734034792169,3.54207,3872.0,3871.9,7.52752849]
[1734034793273,3.54207,3872.0,3871.9,9.8657181]
[1734034794483,0.7836,3874.4,3873.2,0.7846]
[1734034794682,2.58117,3874.3,3873.2,1.343789]
[1734034795192,2.58096,3874.6,3873.2,3.151059]
[1734034795345,0.7987,3874.7,3873.2,3.151059]
[1734034795346,2.5811,3874.4,3873.2,1.343789]
[1734034795682,2.5811,3874.4,3873.2,4.343789]
[1734034796541,2.58092,3874.6,3873.2,4.343789]
[1734034796882,2.58037,3875.4,3874.0,1.80691]
[1734034797088,2.58048,3875.3,3874.1,2.60597755]
[1734034797392,0.7889,3875.5,3874.1,2.60597755]
[1734034797393,0.7889,3875.5,3874.1,2.58017]
[1734034797591,2.58038,3875.4,3874.1,2.58017]
[1734034797942,2.58038,3875.4,3873.8,3.0]
[1734034797943,0.8313,3875.9,3874.2,5.63848]
[1734034798141,2.58035,3875.5,3874.3,0.8317]
[1734034798679,0.03225622,3875.8,3874.3,0.8317]
[1734034798884,2.58036,3875.5,3874.3,0.8317]
[1734034799052,2.58034,3875.5,3874.3,0.8317]
[1734034799503,0.03225622,3875.8,3874.3,0.8317]
[1734034799796,2.58047,3875.3,3874.3,0.8317]
[1734034800202,0.8313,3875.9,3874.4,4.80672]
[1734034800446,0.8313,3875.9,3874.5,3.7851]
[1734034800603,0.8147,3876.3,3874.7,3.0]
[1734034800782,2.57995,3876.1,3874.9,0.7851]
[1734034800990,0.339465,3876.0,3874.9,0.7851]
[1734034801238,2.57978,3876.3,3875.1,0.7851]
[1734034801529,0.8147,3876.7,3875.4,0.7567]
[1734034801686,2.57983,3876.3,3875.4,0.7567]
[1734034801890,2.58012,3875.8,3875.4,0.7567]
[1734034802086,0.03225249,3876.2,3874.5,3.0]
[1734034802301,6.30918031,3876.7,3874.6,0.7567]
[1734034802302,2.58015,3875.8,3874.6,0.7567]
[1734034802495,2.57975,3876.4,3874.6,0.7567]
[1734034802721,2.57975,3876.4,3874.6,2.56333]
[1734034802722,2.57999,3876.0,3874.6,2.56333]
[1734034803279,2.57975,3876.4,3874.6,2.56333]
[1734034803280,2.58007,3875.9,3874.6,2.56333]
[1734034803488,0.8147,3876.7,3874.9,3.8255]
[1734034803732,0.8147,3876.7,3875.4,0.8255]
[1734034803915,2.58004,3876.0,3875.4,0.8255]
[1734034804126,0.03225074,3876.4,3875.4,0.8255]
[1734034804316,2.5801,3875.9,3875.4,0.8255]
[1734034804483,0.8147,3876.7,3875.4,0.8255]
[1734034804484,0.03225116,3876.2,3875.4,0.8255]
[1734034804833,0.03225116,3876.2,3874.0,0.12863311]
[1734034804834,0.8199,3875.9,3874.9,0.8255]
[1734034804999,2.58047,3875.3,3874.9,0.8255]
[1734034805200,2.58071,3874.9,3874.3,0.8255]
[1734034805730,0.03226056,3875.6,3874.3,0.8255]
[1734034805731,2.58031,3875.5,3874.3,0.8255]
[1734034805966,0.339982,3875.8,3874.3,0.8255]
[1734034806085,2.5803,3875.6,3874.3,0.8255]
[1734034806436,2.8723382,3875.5,3874.3,0.8255]
[1734034806586,2.58042,3875.4,3874.3,0.8255]
[1734034806788,2.58052,3875.2,3874.3,0.8255]
[1734034807335,0.03225741,3875.1,3874.3,0.8255]
[1734034807635,2.58086,3874.7,3874.3,0.8255]
[1734034807815,0.258086,3874.7,3874.3,0.8255]
[1734034808198,2.5807,3875.0,3874.3,0.8255]
[1734034808399,2.58038,3875.4,3874.3,0.8255]
[1734034808604,0.339982,3875.8,3874.8,1.80652]
[1734034808802,0.339982,3875.8,3874.4,3.8255]
[1734034808803,2.920102,3875.8,3874.9,0.8255]
[1734034809092,0.03225292,3875.7,3874.9,0.8255]
[1734034809493,0.03225292,3875.7,3873.7,2.91492031]
[1734034809494,2.58079,3874.8,3874.6,0.8255]
[1734034809693,2.58079,3874.8,3874.3,0.8255]
[1734034810134,2.58047,3875.3,3874.3,0.8255]
[1734034810434,0.03225922,3875.2,3874.3,0.8255]
[1734034810599,2.58047,3875.3,3874.3,0.8255]
[1734034810795,0.340037,3875.3,3874.5,1.80668]
[1734034811021,0.26123429,3875.7,3874.5,1.80668]
[1734034811022,2.84143429,3875.7,3874.7,0.8296]
[1734034811343,0.26123429,3875.7,3874.7,2.63617]
[1734034811505,2.58012,3875.8,3874.7,2.63617]
[1734034811896,0.8013,3876.0,3874.7,0.8296]
[1734034812142,0.03225394,3875.9,3874.7,0.8296]
[1734034812642,2.58059,3875.1,3874.7,0.8296]
[1734034812855,0.8332,3875.3,3874.3,0.8014]
[1734034813139,2.58079,3874.8,3874.3,0.8014]
[1734034813321,0.29034044,3874.7,3873.7,0.817]
[1734034813489,0.03226144,3874.7,3873.7,0.817]
[1734034813695,2.58106,3874.4,3873.7,0.817]
[1734034814240,2.58112,3874.3,3873.7,0.817]
[1734034814503,2.58111,3874.3,3873.7,0.817]
[1734034815286,0.03226509,3874.8,3873.7,0.817]
[1734034815441,0.03226508,3875.1,3873.7,0.817]
[1734034815648,2.58071,3874.9,3873.7,0.817]
[1734034816542,2.58105,3874.4,3873.7,0.817]
[1734034816750,2.58111,3874.3,3873.7,0.817]
[1734034817091,1.3188,3875.0,3873.7,0.817]
[1734034817248,2.58101,3874.5,3873.7,0.817]
[1734034817588,0.03226777,3874.4,3873.7,0.817]
[1734034817786,2.58104,3874.5,3873.7,0.817]
[1734034818001,2.58105,3874.4,3873.7,0.817]
[1734034818179,2.58111,3874.3,3873.7,0.817]
[1734034818352,2.58119,3874.2,3873.7,0.817]
[1734034818787,2.58125,3874.1,3873.7,0.817]
[1734034819325,0.258105,3874.4,3873.7,0.817]
[1734034819447,2.58112,3874.3,3873.7,0.817]
[1734034819651,2.58118,3874.2,3873.7,0.817]
[1734034820101,2.58141,3873.9,3873.7,0.817]
[1734034820259,2.58141,3873.9,3871.0,3.70123259]
[1734034820260,2.58157,3873.6,3872.9,0.817]
[1734034820696,2.58157,3873.6,3871.2,0.02581875]
[1734034820697,2.58206,3872.9,3872.6,0.817]
[1734034820855,2.61438762,3872.8,3871.8,0.817]
[1734034821051,2.58211,3872.8,3871.8,0.817]
[1734034821249,0.258206,3872.9,3871.8,0.817]
[1734034821449,0.7688,3873.6,3872.2,1.80775]